[Event "Titled Tuesday Blitz January 10 Early 2023"]
[White "Avila Pavas, Santiago"]
[Black "Eljanov, Pavel"]
[WhiteFideId "4437128"]
[BlackFideId "14102951"]
[WhiteElo "2522"]
[BlackElo "2705"]
[Result "0-1"]
[Round "03"]
[TimeControl "180+2"]
[Date "2023.01.10"]
[WhiteClock "0:00:03"]
[BlackClock "0:00:17"]

1. d4 {[%clk 0:03:00]}  Nf6 {[%clk 0:02:59]} 2. Nf3 {[%clk 0:03:01]}  e6 {[%clk 0:02:58]} 3. Bf4 {[%clk 0:03:00]}  c5 {[%clk 0:02:56]} 4. e3 {[%clk 0:03:01]}  d5 {[%clk 0:02:56]} 5. c3 {[%clk 0:03:01]}  Bd6 {[%clk 0:02:54]} 6. Nbd2 {[%clk 0:03:00]}  O-O {[%clk 0:02:51]} 7. Bg3 {[%clk 0:02:59]}  Qc7 {[%clk 0:02:51]} 8. Bd3 {[%clk 0:02:59]}  Nbd7 {[%clk 0:02:50]} 9. e4 {[%clk 0:03:00]}  dxe4 {[%clk 0:02:44]} 10. Nxe4 {[%clk 0:03:01]}  Nxe4 {[%clk 0:02:41]} 11. Bxe4 {[%clk 0:03:02]}  Nf6 {[%clk 0:02:40]} 12. Bc2 {[%clk 0:03:01]}  Bxg3 {[%clk 0:02:22]} 13. hxg3 {[%clk 0:03:02]}  h6 {[%clk 0:02:22]} 14. Qd2 {[%clk 0:02:12]}  cxd4 {[%clk 0:02:22]} 15. cxd4 {[%clk 0:02:12]}  Bd7 {[%clk 0:02:05]} 16. O-O-O {[%clk 0:02:10]}  Ba4 {[%clk 0:01:12]} 17. b3 {[%clk 0:02:07]}  Bc6 {[%clk 0:01:12]} 18. Kb2 {[%clk 0:02:05]}  Bxf3 {[%clk 0:01:07]} 19. gxf3 {[%clk 0:02:05]}  Rfd8 {[%clk 0:01:07]} 20. Be4 {[%clk 0:01:32]}  Rac8 {[%clk 0:00:58]} 21. Rc1 {[%clk 0:01:20]}  Qb6 {[%clk 0:00:57]} 22. Rxc8 {[%clk 0:00:57]}  Rxc8 {[%clk 0:00:57]} 23. Bb1 {[%clk 0:00:49]}  Rd8 {[%clk 0:00:55]} 24. Rd1 {[%clk 0:00:48]}  e5 {[%clk 0:00:55]} 25. Qe3 {[%clk 0:00:33]}  exd4 {[%clk 0:00:53]} 26. Qd3 {[%clk 0:00:33]}  g6 {[%clk 0:00:50]} 27. Rh1 {[%clk 0:00:32]}  Kg7 {[%clk 0:00:50]} 28. g4 {[%clk 0:00:31]}  Qd6 {[%clk 0:00:33]} 29. Qd2 {[%clk 0:00:32]}  Rh8 {[%clk 0:00:33]} 30. Rd1 {[%clk 0:00:20]}  Rd8 {[%clk 0:00:30]} 31. Rh1 {[%clk 0:00:20]}  Ng8 {[%clk 0:00:30]} 32. Bd3 {[%clk 0:00:18]}  Qf6 {[%clk 0:00:27]} 33. f4 {[%clk 0:00:18]}  b6 {[%clk 0:00:26]} 34. g5 {[%clk 0:00:18]}  hxg5 {[%clk 0:00:25]} 35. fxg5 {[%clk 0:00:19]}  Qe5 {[%clk 0:00:26]} 36. f4 {[%clk 0:00:09]}  Qe3 {[%clk 0:00:25]} 37. Qd1 {[%clk 0:00:10]}  Ne7 {[%clk 0:00:22]} 38. Bc4 {[%clk 0:00:08]}  Nf5 {[%clk 0:00:20]} 39. Qg4 {[%clk 0:00:07]}  d3 {[%clk 0:00:18]} 40. Rh3 {[%clk 0:00:03]}  Qd4+ {[%clk 0:00:17]} 41. Ka3 {[%clk 0:00:03]}  d2 {[%clk 0:00:17]} 0-1


[Site "https://www.chess.com"]

[Event "Titled Tuesday Blitz January 10 Early 2023"]
[White "Vokhidov, Shamsiddin"]
[Black "Samunenkov, Ihor"]
[WhiteFideId "14204223"]
[BlackFideId "14187086"]
[WhiteElo "2586"]
[BlackElo "2501"]
[Result "1-0"]
[Round "03"]
[TimeControl "180+2"]
[Date "2023.01.10"]
[WhiteClock "0:01:26"]
[BlackClock "0:00:07"]

1. e4 {[%clk 0:03:00]}  c5 {[%clk 0:02:57]} 2. Nf3 {[%clk 0:03:00]}  Nc6 {[%clk 0:02:57]} 3. Bb5 {[%clk 0:03:00]}  g6 {[%clk 0:02:44]} 4. Bxc6 {[%clk 0:03:00]}  dxc6 {[%clk 0:02:45]} 5. d3 {[%clk 0:03:00]}  Bg7 {[%clk 0:02:46]} 6. h3 {[%clk 0:03:00]}  Nf6 {[%clk 0:02:46]} 7. a4 {[%clk 0:03:01]}  Nd7 {[%clk 0:02:33]} 8. a5 {[%clk 0:03:00]}  e5 {[%clk 0:02:33]} 9. Be3 {[%clk 0:02:58]}  Qe7 {[%clk 0:02:33]} 10. Qd2 {[%clk 0:02:57]}  h6 {[%clk 0:02:33]} 11. Qc3 {[%clk 0:02:41]}  f5 {[%clk 0:02:26]} 12. Na3 {[%clk 0:02:38]}  O-O {[%clk 0:02:22]} 13. Nc4 {[%clk 0:02:34]}  f4 {[%clk 0:02:04]} 14. Bc1 {[%clk 0:02:33]}  g5 {[%clk 0:02:03]} 15. b3 {[%clk 0:02:33]}  Re8 {[%clk 0:01:49]} 16. Bb2 {[%clk 0:02:32]}  h5 {[%clk 0:01:47]} 17. Qd2 {[%clk 0:02:25]}  Bf6 {[%clk 0:01:36]} 18. g3 {[%clk 0:02:23]}  Kf7 {[%clk 0:00:51]} 19. gxf4 {[%clk 0:02:18]}  gxf4 {[%clk 0:00:52]} 20. Rg1 {[%clk 0:02:12]}  Rb8 {[%clk 0:00:50]} 21. Qe2 {[%clk 0:02:11]}  Rh8 {[%clk 0:00:49]} 22. h4 {[%clk 0:02:08]}  b5 {[%clk 0:00:42]} 23. axb6 {[%clk 0:02:08]}  axb6 {[%clk 0:00:43]} 24. Ra7 {[%clk 0:01:54]}  Bb7 {[%clk 0:00:37]} 25. Ng5+ {[%clk 0:01:49]}  Ke8 {[%clk 0:00:37]} 26. Qf3 {[%clk 0:01:47]}  Kd8 {[%clk 0:00:16]} 27. Qh3 {[%clk 0:01:40]}  Kc8 {[%clk 0:00:14]} 28. Nf7 {[%clk 0:01:37]}  Rf8 {[%clk 0:00:09]} 29. Nxb6+ {[%clk 0:01:29]}  Kc7 {[%clk 0:00:09]} 30. Nxd7 {[%clk 0:01:29]}  Qxd7 {[%clk 0:00:09]} 31. Qxd7+ {[%clk 0:01:29]}  Kxd7 {[%clk 0:00:10]} 32. Nxe5+ {[%clk 0:01:29]}  Ke6 {[%clk 0:00:11]} 33. Nc4 {[%clk 0:01:26]}  Bxb2 {[%clk 0:00:07]} 34. Nxb2 {[%clk 0:01:27]}  Ra8 {[%clk 0:00:07]} 35. Rxb7 {[%clk 0:01:26]}  Ra1+ {[%clk 0:00:07]} 36. Nd1 {[%clk 0:01:26]} 1-0


[Site "https://www.chess.com"]

[Event "Titled Tuesday Blitz January 10 Early 2023"]
[White "Talibov, Shiroghlan"]
[Black "Puranik, Abhimanyu"]
[WhiteFideId "13429078"]
[BlackFideId "5061245"]
[WhiteElo "2359"]
[BlackElo "2613"]
[Result "0-1"]
[Round "03"]
[TimeControl "180+2"]
[Date "2023.01.10"]
[WhiteClock "0:00:04"]
[BlackClock "0:00:16"]

1. c4 {[%clk 0:03:00]}  c5 {[%clk 0:02:58]} 2. Nc3 {[%clk 0:02:59]}  Nf6 {[%clk 0:02:58]} 3. Nf3 {[%clk 0:02:59]}  d5 {[%clk 0:02:59]} 4. cxd5 {[%clk 0:02:57]}  Nxd5 {[%clk 0:03:00]} 5. g3 {[%clk 0:02:54]}  Nc6 {[%clk 0:02:58]} 6. Bg2 {[%clk 0:02:54]}  Nc7 {[%clk 0:02:58]} 7. O-O {[%clk 0:02:52]}  e5 {[%clk 0:02:59]} 8. d3 {[%clk 0:02:47]}  Be7 {[%clk 0:02:56]} 9. b3 {[%clk 0:02:44]}  O-O {[%clk 0:02:56]} 10. Bb2 {[%clk 0:02:42]}  Be6 {[%clk 0:02:50]} 11. Rc1 {[%clk 0:02:40]}  f6 {[%clk 0:02:44]} 12. e3 {[%clk 0:02:36]}  Qd7 {[%clk 0:02:40]} 13. Na4 {[%clk 0:02:31]}  b6 {[%clk 0:02:34]} 14. d4 {[%clk 0:02:30]}  cxd4 {[%clk 0:02:12]} 15. exd4 {[%clk 0:02:28]}  e4 {[%clk 0:02:06]} 16. d5 {[%clk 0:02:03]}  Bxd5 {[%clk 0:02:01]} 17. Nd4 {[%clk 0:02:00]}  Nb4 {[%clk 0:01:41]} 18. Nc3 {[%clk 0:01:36]}  Nd3 {[%clk 0:01:34]} 19. Nxd5 {[%clk 0:01:30]}  Nxd5 {[%clk 0:01:32]} 20. Bxe4 {[%clk 0:01:29]}  Nxc1 {[%clk 0:00:59]} 21. Nf5 {[%clk 0:01:08]}  Rad8 {[%clk 0:00:52]} 22. Qg4 {[%clk 0:00:51]}  g6 {[%clk 0:00:40]} 23. Rd1 {[%clk 0:00:39]}  Kh8 {[%clk 0:00:23]} 24. Rxd5 {[%clk 0:00:25]}  Qe6 {[%clk 0:00:17]} 25. Rxd8 {[%clk 0:00:06]}  Bxd8 {[%clk 0:00:17]} 26. Bxc1 {[%clk 0:00:03]}  gxf5 {[%clk 0:00:17]} 27. Bxf5 {[%clk 0:00:03]}  Qe1+ {[%clk 0:00:17]} 28. Kg2 {[%clk 0:00:04]}  Qxc1 {[%clk 0:00:17]} 29. Qh5 {[%clk 0:00:04]}  Qc6+ {[%clk 0:00:16]} 0-1


[Site "https://www.chess.com"]

[Event "Titled Tuesday Blitz January 10 Early 2023"]
[White "Karthik Rajaa"]
[Black "Bachmann, Axel"]
[WhiteFideId "25035215"]
[BlackFideId "3700488"]
[WhiteElo "2276"]
[BlackElo "2604"]
[Result "1-0"]
[Round "03"]
[TimeControl "180+2"]
[Date "2023.01.10"]
[WhiteClock "0:01:20"]
[BlackClock "0:00:42"]

1. e4 {[%clk 0:03:00]}  Nc6 {[%clk 0:03:00]} 2. Nf3 {[%clk 0:02:58]}  d6 {[%clk 0:03:00]} 3. d4 {[%clk 0:02:58]}  Nf6 {[%clk 0:03:00]} 4. d5 {[%clk 0:02:54]}  Nb8 {[%clk 0:03:00]} 5. Bd3 {[%clk 0:02:51]}  c6 {[%clk 0:03:00]} 6. O-O {[%clk 0:02:49]}  g6 {[%clk 0:02:55]} 7. b3 {[%clk 0:02:42]}  Bg7 {[%clk 0:02:54]} 8. Bb2 {[%clk 0:02:43]}  O-O {[%clk 0:02:55]} 9. c4 {[%clk 0:02:42]}  Bg4 {[%clk 0:02:48]} 10. Nbd2 {[%clk 0:02:41]}  a5 {[%clk 0:02:41]} 11. a3 {[%clk 0:02:31]}  Na6 {[%clk 0:02:38]} 12. h3 {[%clk 0:02:26]}  Nc5 {[%clk 0:02:28]} 13. Bc2 {[%clk 0:02:26]}  Bxf3 {[%clk 0:02:27]} 14. Qxf3 {[%clk 0:02:16]}  Nfxe4 {[%clk 0:02:15]} 15. Nxe4 {[%clk 0:02:16]}  Bxb2 {[%clk 0:02:15]} 16. Nxc5 {[%clk 0:02:16]}  Bxa1 {[%clk 0:01:49]} 17. Nxb7 {[%clk 0:02:17]}  Qb6 {[%clk 0:01:49]} 18. Rxa1 {[%clk 0:02:17]}  Qxb7 {[%clk 0:01:13]} 19. dxc6 {[%clk 0:02:17]}  Qb6 {[%clk 0:01:14]} 20. Re1 {[%clk 0:02:15]}  e6 {[%clk 0:01:11]} 21. Rd1 {[%clk 0:02:01]}  Rfd8 {[%clk 0:01:08]} 22. Be4 {[%clk 0:01:38]}  Qc5 {[%clk 0:01:00]} 23. c7 {[%clk 0:01:31]}  Qxc7 {[%clk 0:00:46]} 24. Bxa8 {[%clk 0:01:31]}  d5 {[%clk 0:00:46]} 25. cxd5 {[%clk 0:01:26]}  Rxa8 {[%clk 0:00:46]} 26. d6 {[%clk 0:01:23]}  Qd8 {[%clk 0:00:42]} 27. d7 {[%clk 0:01:20]} 1-0


[Site "https://www.chess.com"]

[Event "Titled Tuesday Blitz January 10 Early 2023"]
[White "Dominguez Perez, Leinier"]
[Black "Blohberger, Felix"]
[WhiteFideId "3503240"]
[BlackFideId "1632051"]
[WhiteElo "2739"]
[BlackElo "2501"]
[Result "1-0"]
[Round "03"]
[TimeControl "180+2"]
[Date "2023.01.10"]
[WhiteClock "0:01:18"]
[BlackClock "0:00:16"]

1. e4 {[%clk 0:03:00]}  e5 {[%clk 0:02:53]} 2. Nf3 {[%clk 0:03:00]}  Nc6 {[%clk 0:02:53]} 3. Bc4 {[%clk 0:02:58]}  Nf6 {[%clk 0:02:53]} 4. d3 {[%clk 0:02:58]}  Bc5 {[%clk 0:02:53]} 5. c3 {[%clk 0:02:57]}  d6 {[%clk 0:02:52]} 6. O-O {[%clk 0:02:56]}  a5 {[%clk 0:02:52]} 7. Re1 {[%clk 0:02:56]}  h6 {[%clk 0:02:48]} 8. Nbd2 {[%clk 0:02:53]}  O-O {[%clk 0:02:43]} 9. Nf1 {[%clk 0:02:47]}  Be6 {[%clk 0:02:42]} 10. Bb5 {[%clk 0:02:46]}  Bb6 {[%clk 0:02:23]} 11. Ng3 {[%clk 0:02:46]}  Ne7 {[%clk 0:02:20]} 12. d4 {[%clk 0:02:46]}  Ng6 {[%clk 0:02:17]} 13. h3 {[%clk 0:02:42]}  c6 {[%clk 0:02:16]} 14. Ba4 {[%clk 0:02:38]}  Bc7 {[%clk 0:02:10]} 15. Bc2 {[%clk 0:02:38]}  Re8 {[%clk 0:02:06]} 16. Be3 {[%clk 0:02:32]}  b5 {[%clk 0:01:52]} 17. a4 {[%clk 0:02:31]}  Bb6 {[%clk 0:01:51]} 18. axb5 {[%clk 0:02:20]}  cxb5 {[%clk 0:01:51]} 19. Qd2 {[%clk 0:02:17]}  Qc7 {[%clk 0:01:36]} 20. Rad1 {[%clk 0:02:09]}  b4 {[%clk 0:01:29]} 21. Nf5 {[%clk 0:02:03]}  bxc3 {[%clk 0:01:26]} 22. bxc3 {[%clk 0:02:03]}  Bxf5 {[%clk 0:01:11]} 23. exf5 {[%clk 0:02:04]}  Nf8 {[%clk 0:01:12]} 24. Bxh6 {[%clk 0:01:32]}  gxh6 {[%clk 0:01:10]} 25. Qxh6 {[%clk 0:01:33]}  N8h7 {[%clk 0:01:08]} 26. Ng5 {[%clk 0:01:28]}  exd4 {[%clk 0:00:38]} 27. Nxh7 {[%clk 0:01:25]}  Nxh7 {[%clk 0:00:37]} 28. f6 {[%clk 0:01:20]}  Nxf6 {[%clk 0:00:32]} 29. Qg5+ {[%clk 0:01:18]}  Kf8 {[%clk 0:00:26]} 30. Qxf6 {[%clk 0:01:18]}  Kg8 {[%clk 0:00:16]} 31. Qg5+ {[%clk 0:01:18]} 1-0


[Site "https://www.chess.com"]

[Event "Titled Tuesday Blitz January 10 Early 2023"]
[White "Jones, Gawain C B"]
[Black "Starozhilov, Leonid"]
[WhiteFideId "409561"]
[BlackFideId "14106752"]
[WhiteElo "2618"]
[BlackElo "2313"]
[Result "1-0"]
[Round "03"]
[TimeControl "180+2"]
[Date "2023.01.10"]
[WhiteClock "0:00:08"]
[BlackClock "0:00:09"]

1. Nf3 {[%clk 0:03:00]}  Nf6 {[%clk 0:02:59]} 2. b3 {[%clk 0:02:59]}  g6 {[%clk 0:02:58]} 3. Bb2 {[%clk 0:02:59]}  Bg7 {[%clk 0:02:59]} 4. g3 {[%clk 0:03:00]}  O-O {[%clk 0:02:59]} 5. Bg2 {[%clk 0:03:00]}  d6 {[%clk 0:02:56]} 6. d4 {[%clk 0:03:00]}  c6 {[%clk 0:02:55]} 7. O-O {[%clk 0:03:00]}  Bf5 {[%clk 0:02:55]} 8. Nbd2 {[%clk 0:02:58]}  d5 {[%clk 0:02:51]} 9. c4 {[%clk 0:02:54]}  a5 {[%clk 0:02:47]} 10. Re1 {[%clk 0:02:37]}  Na6 {[%clk 0:02:45]} 11. Nh4 {[%clk 0:02:33]}  Bg4 {[%clk 0:02:42]} 12. h3 {[%clk 0:02:32]}  Be6 {[%clk 0:02:35]} 13. e4 {[%clk 0:02:30]}  Nxe4 {[%clk 0:02:35]} 14. Nxe4 {[%clk 0:02:30]}  dxe4 {[%clk 0:02:35]} 15. Rxe4 {[%clk 0:02:31]}  c5 {[%clk 0:02:26]} 16. Nf3 {[%clk 0:02:13]}  Bf5 {[%clk 0:02:15]} 17. Re2 {[%clk 0:02:12]}  Nb4 {[%clk 0:02:14]} 18. d5 {[%clk 0:01:40]}  Bxb2 {[%clk 0:01:57]} 19. Rxb2 {[%clk 0:01:41]}  a4 {[%clk 0:01:57]} 20. bxa4 {[%clk 0:01:38]}  Qa5 {[%clk 0:01:34]} 21. a3 {[%clk 0:01:32]}  Qxa4 {[%clk 0:01:34]} 22. g4 {[%clk 0:00:43]}  Be4 {[%clk 0:01:18]} 23. Qe2 {[%clk 0:00:35]}  Bd3 {[%clk 0:00:50]} 24. Qxe7 {[%clk 0:00:34]}  Bxc4 {[%clk 0:00:49]} 25. Ne5 {[%clk 0:00:25]}  Bxd5 {[%clk 0:00:39]} 26. Rxb4 {[%clk 0:00:24]}  cxb4 {[%clk 0:00:34]} 27. Bxd5 {[%clk 0:00:24]}  Qe8 {[%clk 0:00:23]} 28. Qxe8 {[%clk 0:00:14]}  Raxe8 {[%clk 0:00:24]} 29. Nxf7 {[%clk 0:00:11]}  Rxf7 {[%clk 0:00:20]} 30. axb4 {[%clk 0:00:11]}  Rd8 {[%clk 0:00:19]} 31. Bxf7+ {[%clk 0:00:10]}  Kxf7 {[%clk 0:00:20]} 32. Ra7 {[%clk 0:00:10]}  Rd7 {[%clk 0:00:20]} 33. Kg2 {[%clk 0:00:10]}  g5 {[%clk 0:00:20]} 34. Kf3 {[%clk 0:00:11]}  Kf6 {[%clk 0:00:20]} 35. Ke4 {[%clk 0:00:11]}  Ke6 {[%clk 0:00:19]} 36. Ra5 {[%clk 0:00:09]}  h6 {[%clk 0:00:18]} 37. Re5+ {[%clk 0:00:09]}  Kf6 {[%clk 0:00:18]} 38. Rd5 {[%clk 0:00:09]}  Re7+ {[%clk 0:00:17]} 39. Kd4 {[%clk 0:00:10]}  Re2 {[%clk 0:00:17]} 40. Rf5+ {[%clk 0:00:10]}  Kg6 {[%clk 0:00:17]} 41. Kc5 {[%clk 0:00:10]}  Re6 {[%clk 0:00:16]} 42. Rd5 {[%clk 0:00:10]}  Kf7 {[%clk 0:00:14]} 43. Rd7+ {[%clk 0:00:09]}  Ke8 {[%clk 0:00:10]} 44. Rxb7 {[%clk 0:00:10]}  Rf6 {[%clk 0:00:11]} 45. b5 {[%clk 0:00:09]}  Rxf2 {[%clk 0:00:11]} 46. Rh7 {[%clk 0:00:08]}  Rc2+ {[%clk 0:00:10]} 47. Kb6 {[%clk 0:00:08]}  Rd2 {[%clk 0:00:08]} 48. Rxh6 {[%clk 0:00:07]}  Ke7 {[%clk 0:00:09]} 49. Kc7 {[%clk 0:00:07]}  Rc2+ {[%clk 0:00:09]} 50. Rc6 {[%clk 0:00:07]}  Rh2 {[%clk 0:00:08]} 51. b6 {[%clk 0:00:08]}  Rxh3 {[%clk 0:00:09]} 52. b7 {[%clk 0:00:08]} 1-0


[Site "https://www.chess.com"]

[Event "Titled Tuesday Blitz January 10 Early 2023"]
[White "Kadric, Denis"]
[Black "Goltsev, Dmitry"]
[WhiteFideId "14403803"]
[BlackFideId "24176710"]
[WhiteElo "2601"]
[BlackElo "2269"]
[Result "0-1"]
[Round "03"]
[TimeControl "180+2"]
[Date "2023.01.10"]
[WhiteClock "0:00:35"]
[BlackClock "0:00:42"]

1. e4 {[%clk 0:03:00]}  e6 {[%clk 0:02:59]} 2. d3 {[%clk 0:03:01]}  d5 {[%clk 0:03:00]} 3. Nd2 {[%clk 0:03:01]}  c5 {[%clk 0:03:00]} 4. g3 {[%clk 0:03:01]}  Nf6 {[%clk 0:03:00]} 5. e5 {[%clk 0:03:01]}  Nfd7 {[%clk 0:03:00]} 6. f4 {[%clk 0:03:02]}  Nc6 {[%clk 0:03:00]} 7. Ndf3 {[%clk 0:03:02]}  Be7 {[%clk 0:02:58]} 8. Nh3 {[%clk 0:03:03]}  h6 {[%clk 0:02:57]} 9. Bg2 {[%clk 0:03:02]}  a6 {[%clk 0:02:57]} 10. O-O {[%clk 0:03:02]}  b5 {[%clk 0:02:57]} 11. Qe2 {[%clk 0:03:03]}  Bb7 {[%clk 0:02:57]} 12. Bd2 {[%clk 0:02:59]}  Qb6 {[%clk 0:02:55]} 13. f5 {[%clk 0:02:56]}  exf5 {[%clk 0:02:48]} 14. Nf4 {[%clk 0:02:55]}  Nb4 {[%clk 0:02:36]} 15. c3 {[%clk 0:02:35]}  c4+ {[%clk 0:02:24]} 16. d4 {[%clk 0:02:33]}  Nd3 {[%clk 0:02:25]} 17. Nxd3 {[%clk 0:02:29]}  cxd3 {[%clk 0:02:25]} 18. Qxd3 {[%clk 0:02:30]}  g6 {[%clk 0:02:25]} 19. a4 {[%clk 0:02:18]}  Bc6 {[%clk 0:02:05]} 20. Rfe1 {[%clk 0:02:05]}  Nf8 {[%clk 0:02:02]} 21. axb5 {[%clk 0:02:05]}  Bxb5 {[%clk 0:02:02]} 22. Qc2 {[%clk 0:01:58]}  Ne6 {[%clk 0:02:01]} 23. Be3 {[%clk 0:01:56]}  Kf8 {[%clk 0:01:49]} 24. Nd2 {[%clk 0:01:52]}  Rd8 {[%clk 0:01:35]} 25. Qb3 {[%clk 0:01:43]}  Kg7 {[%clk 0:01:30]} 26. Bxd5 {[%clk 0:01:37]}  Bg5 {[%clk 0:01:01]} 27. Nf3 {[%clk 0:00:59]}  Rxd5 {[%clk 0:00:51]} 28. Nxg5 {[%clk 0:00:49]}  hxg5 {[%clk 0:00:46]} 29. Qxd5 {[%clk 0:00:49]}  Bc6 {[%clk 0:00:46]} 30. Qd6 {[%clk 0:00:36]}  Qxb2 {[%clk 0:00:43]} 31. Bf2 {[%clk 0:00:35]}  Rxh2 {[%clk 0:00:42]} 0-1


[Site "https://www.chess.com"]

[Event "Titled Tuesday Blitz January 10 Early 2023"]
[White "Ivic, Velimir"]
[Black "Kosteniuk, Alexandra"]
[WhiteFideId "950122"]
[BlackFideId "4128125"]
[WhiteElo "2595"]
[BlackElo "2535"]
[Result "0-1"]
[Round "03"]
[TimeControl "180+2"]
[Date "2023.01.10"]
[WhiteClock "0:00:01"]
[BlackClock "0:00:24"]

1. e4 {[%clk 0:03:00]}  c6 {[%clk 0:03:00]} 2. d4 {[%clk 0:02:59]}  d5 {[%clk 0:03:00]} 3. Nd2 {[%clk 0:03:00]}  dxe4 {[%clk 0:03:00]} 4. Nxe4 {[%clk 0:03:01]}  Nf6 {[%clk 0:03:01]} 5. Nxf6+ {[%clk 0:03:00]}  exf6 {[%clk 0:03:02]} 6. c3 {[%clk 0:03:00]}  Bd6 {[%clk 0:03:01]} 7. Bd3 {[%clk 0:03:01]}  O-O {[%clk 0:03:01]} 8. Ne2 {[%clk 0:03:01]}  Re8 {[%clk 0:03:00]} 9. O-O {[%clk 0:03:01]}  Nd7 {[%clk 0:03:00]} 10. Ng3 {[%clk 0:03:00]}  Nf8 {[%clk 0:03:00]} 11. f4 {[%clk 0:02:59]}  Bd7 {[%clk 0:02:49]} 12. f5 {[%clk 0:02:54]}  Bxg3 {[%clk 0:02:25]} 13. hxg3 {[%clk 0:02:55]}  c5 {[%clk 0:02:24]} 14. d5 {[%clk 0:02:28]}  Qb6 {[%clk 0:02:07]} 15. c4 {[%clk 0:02:27]}  Rad8 {[%clk 0:02:04]} 16. b3 {[%clk 0:02:15]}  Bc8 {[%clk 0:02:04]} 17. Bf4 {[%clk 0:02:11]}  Nd7 {[%clk 0:02:03]} 18. Qd2 {[%clk 0:02:05]}  Ne5 {[%clk 0:02:02]} 19. Rae1 {[%clk 0:02:02]}  Qd6 {[%clk 0:01:39]} 20. Re2 {[%clk 0:01:43]}  Re7 {[%clk 0:01:39]} 21. Rfe1 {[%clk 0:01:42]}  Rde8 {[%clk 0:01:39]} 22. Bc2 {[%clk 0:01:37]}  Bd7 {[%clk 0:01:35]} 23. a4 {[%clk 0:01:31]}  b6 {[%clk 0:01:29]} 24. a5 {[%clk 0:01:31]}  b5 {[%clk 0:01:24]} 25. cxb5 {[%clk 0:01:23]}  Bxb5 {[%clk 0:01:24]} 26. Re3 {[%clk 0:01:23]}  Rd8 {[%clk 0:01:14]} 27. Rd1 {[%clk 0:01:23]}  Red7 {[%clk 0:01:04]} 28. Qc3 {[%clk 0:01:15]}  Re7 {[%clk 0:01:02]} 29. g4 {[%clk 0:00:43]}  h6 {[%clk 0:00:58]} 30. Re4 {[%clk 0:00:43]}  a6 {[%clk 0:00:58]} 31. Qg3 {[%clk 0:00:40]}  Rde8 {[%clk 0:00:56]} 32. Re3 {[%clk 0:00:39]}  c4 {[%clk 0:00:55]} 33. bxc4 {[%clk 0:00:38]}  Bxc4 {[%clk 0:00:55]} 34. Kh1 {[%clk 0:00:31]}  Bb5 {[%clk 0:00:54]} 35. Qh4 {[%clk 0:00:27]}  Rc8 {[%clk 0:00:53]} 36. Bb1 {[%clk 0:00:07]}  Qb4 {[%clk 0:00:49]} 37. Bxh6 {[%clk 0:00:06]}  gxh6 {[%clk 0:00:41]} 38. d6 {[%clk 0:00:06]}  Rd7 {[%clk 0:00:38]} 39. Rh3 {[%clk 0:00:05]}  Nxg4 {[%clk 0:00:32]} 40. Rg3 {[%clk 0:00:05]}  Be2 {[%clk 0:00:31]} 41. Rg1 {[%clk 0:00:01]}  Kh7 {[%clk 0:00:26]} 42. Be4 {[%clk 0:00:01]}  Qxe4 {[%clk 0:00:24]} 0-1


[Site "https://www.chess.com"]

[Event "Titled Tuesday Blitz January 10 Early 2023"]
[White "Ilkhomi, Jaloliddin"]
[Black "Moroni, Luca Jr"]
[WhiteFideId "14700948"]
[BlackFideId "865834"]
[WhiteElo "1997"]
[BlackElo "2535"]
[Result "0-1"]
[Round "03"]
[TimeControl "180+2"]
[Date "2023.01.10"]
[WhiteClock "0:00:07"]
[BlackClock "0:00:56"]

1. d4 {[%clk 0:03:00]}  g6 {[%clk 0:02:59]} 2. Nf3 {[%clk 0:02:59]}  Bg7 {[%clk 0:02:59]} 3. b3 {[%clk 0:02:59]}  d6 {[%clk 0:02:57]} 4. Bb2 {[%clk 0:03:00]}  b6 {[%clk 0:02:49]} 5. g3 {[%clk 0:03:00]}  Bb7 {[%clk 0:02:49]} 6. Bg2 {[%clk 0:03:00]}  Nd7 {[%clk 0:02:49]} 7. O-O {[%clk 0:03:00]}  Ngf6 {[%clk 0:02:49]} 8. Nbd2 {[%clk 0:03:01]}  O-O {[%clk 0:02:49]} 9. Re1 {[%clk 0:03:01]}  Ne4 {[%clk 0:02:49]} 10. Nxe4 {[%clk 0:02:57]}  Bxe4 {[%clk 0:02:48]} 11. Nd2 {[%clk 0:02:58]}  Bxg2 {[%clk 0:02:48]} 12. Kxg2 {[%clk 0:02:59]}  c5 {[%clk 0:02:43]} 13. Nf3 {[%clk 0:02:55]}  d5 {[%clk 0:02:30]} 14. e4 {[%clk 0:02:38]}  dxe4 {[%clk 0:02:22]} 15. Rxe4 {[%clk 0:02:38]}  e6 {[%clk 0:02:22]} 16. Re2 {[%clk 0:02:27]}  Qc7 {[%clk 0:01:39]} 17. c4 {[%clk 0:02:25]}  Rad8 {[%clk 0:01:39]} 18. Rd2 {[%clk 0:02:23]}  cxd4 {[%clk 0:01:31]} 19. Bxd4 {[%clk 0:02:22]}  e5 {[%clk 0:01:31]} 20. Bb2 {[%clk 0:02:10]}  e4 {[%clk 0:01:31]} 21. Nd4 {[%clk 0:01:43]}  Qb7 {[%clk 0:01:27]} 22. Kg1 {[%clk 0:01:40]}  Ne5 {[%clk 0:01:25]} 23. f4 {[%clk 0:00:16]}  Nd3 {[%clk 0:00:57]} 24. Rxd3 {[%clk 0:00:06]}  exd3 {[%clk 0:00:57]} 25. Qxd3 {[%clk 0:00:07]}  Rxd4 {[%clk 0:00:56]} 26. Bxd4 {[%clk 0:00:07]}  Rd8 {[%clk 0:00:56]} 0-1


[Site "https://www.chess.com"]